fUSD/lending_fUSD_20240225
["ID","MTS","AMOUNT","RATE_DAILY","PERIOD"]
[315155789,1708894233300,-500.0,0.00023,2]
[315155790,1708894233309,-500.0,0.00023,2]
[315155791,1708894233318,-500.0,0.00023,2]
[315155792,1708894233327,-500.0,0.00023,2]
[315155793,1708894233336,-500.0,0.00023,2]
[315155794,1708894233346,-500.0,0.00023,2]
[315155795,1708894233355,-500.0,0.00023,2]
[315155796,1708894233364,-500.0,0.00023,2]
[315155797,1708894233373,-500.0,0.00023,2]
[315155798,1708894233382,-500.0,0.00023,2]
[315155799,1708894233391,-500.0,0.00023,2]
[315155800,1708894233400,-500.0,0.00023,2]
[315155801,1708894233410,-521.31,0.00023,2]
[315155802,1708894233419,-500.0,0.00023,2]
[315155803,1708894233429,-500.0,0.00023,2]
[315155804,1708894233438,-500.0,0.00023,2]
[315155805,1708894233447,-355.56,0.00023,2]
[315155806,1708894233456,-14163.17668086,0.00023,2]
[315155807,1708894233474,-1000.0,0.00023,2]
[315155808,1708894233485,-1000.0,0.00023,2]
[315155809,1708894233494,-1000.0,0.00023,2]
[315155810,1708894233504,-1000.0,0.00023,2]
[315155811,1708894233513,-1000.0,0.00023,2]
[315155812,1708894233522,-1044.0,0.00023,2]
[315155813,1708894233531,-156.2,0.00023028,2]
[315155814,1708894233541,-406.78,0.00023041,2]
[315155815,1708894233822,-918.74,0.00023041,2]
[315155816,1708894233833,-156.2,0.00023093,2]
[315155817,1708894233842,-156.2,0.00023157,2]
[315155818,1708894233851,-166.94,0.00023172,2]
[315155819,1708894233861,-156.79,0.00023176,2]
[315155820,1708894233870,-150.0,0.00023178,2]
[315155821,1708894233879,-150.0,0.00023178,2]
[315155822,1708894233889,-150.0,0.00023178,2]
[315155823,1708894233898,-150.0,0.00023178,2]
[315155824,1708894233911,-150.0,0.00023178,2]
[315155825,1708894233921,-150.0,0.00023178,2]
[315155826,1708894233930,-150.0,0.00023178,2]
[315155827,1708894233940,-150.0,0.00023178,2]
[315155828,1708894233949,-150.0,0.00023178,2]
[315155829,1708894233959,-150.0,0.00023178,2]
[315155830,1708894233969,-150.0,0.00023178,2]
[315155831,1708894233979,-393.04,0.00023178,2]
[315155832,1708894233988,-153.47,0.00023178,2]
[315155833,1708894233998,-424.37,0.00023178,2]
[315155834,1708894234008,-436.86,0.00023178,2]
[315155835,1708894234018,-150.0,0.000232,2]
[315155836,1708894234027,-150.0,0.000232,2]
[315155837,1708894234037,-150.0,0.000232,2]
[315155838,1708894234046,-156.2,0.00023221,2]
[315155839,1708894234055,-1166.13397579,0.0002328,2]
[315155840,1708894234065,-1166.13397579,0.0002328,2]
[315155841,1708894234075,-150.0,0.00023285,2]
[315155842,1708894234084,-156.2,0.00023286,2]
[315155843,1708894234094,-150.0,0.000233,2]
[315155844,1708894234104,-150.0,0.000233,2]
[315155845,1708894234113,-156.2,0.0002335,2]
[315155846,1708894234122,-773.62617413,0.000234,2]
[315155847,1708894234139,-4258.67665188,0.000234,2]
[315155848,1708894234153,-1974.8225,0.000234,2]
[315155849,1708894234165,-4249.44212318,0.000234,2]
[315155850,1708894234176,-301.44505381,0.000234,2]
[315155851,1708894234218,-216.987497,0.000234,2]
[315155852,1708894234227,-156.2,0.00023415,2]
[315155853,1708894234236,-156.79,0.00023459,2]
[315155854,1708894234246,-164.61,0.00023604,2]
[315155855,1708894234255,-1573.93,0.00023693,2]
[315155856,1708894234265,-192.43666526,0.00023706,2]
[315155857,1708894234274,-150.0,0.0002374,2]
[315155858,1708894234283,-156.79,0.00023742,2]
[315155859,1708894234293,-463.94368805,0.00023778,2]
[315155860,1708894234302,-15589.9257,0.00023779,2]
[315155861,1708894234311,-786.7876,0.0002378,2]
[315155862,1708894234320,-150.0,0.00023787,2]
[315155863,1708894234329,-150.0,0.00023791,2]
[315155864,1708894234339,-463.94368804,0.00023795,2]
[315155865,1708894234347,-531.13344801,0.00023797,2]
[315155866,1708894234357,-500.0,0.00023797,2]
[315155867,1708894234367,-542.07,0.00023797,2]
[315155868,1708894234376,-500.0,0.00023797,2]
[315155869,1708894234385,-224.42416516,0.00023797,2]
[315155870,1708894234395,-500.0,0.00023797,2]
[315155871,1708894234404,-500.0,0.00023797,2]
[315155872,1708894234414,-617.53,0.00023797,2]
[315155873,1708894234423,-500.0,0.00023797,2]
[315155874,1708894234432,-500.0,0.00023797,2]
[315155875,1708894234441,-500.0,0.00023797,2]
[315155876,1708894234454,-268.43222115,0.00023797,2]
[315155877,1708894234463,-6530.73809972,0.00023798,2]
[315155878,1708894234473,-500.0,0.00023798,2]
[315155879,1708894234483,-6530.7380997,0.00023798,2]
[315155880,1708894234493,-500.0,0.00023798,2]
[315155881,1708894234502,-6530.7380997,0.00023798,2]
[315155882,1708894234511,-500.0,0.00023798,2]
[315155883,1708894234521,-500.0,0.00023798,2]
[315155884,1708894234530,-6530.7380997,0.00023798,2]
[315155885,1708894234539,-500.0,0.00023798,2]
[315155886,1708894234549,-299.32,0.00023798,2]
[315155887,1708894234558,-4267.73772844,0.00023798,2]
[315155888,1708894234578,-1242.75608315,0.00023798,2]
[315155889,1708894234596,-1020.24428811,0.00023798,2]
[315155890,1708894234606,-345.96,0.00023798,2]
[315155891,1708894234615,-6530.7380997,0.00023798,2]
[315155892,1708894234625,-6530.7380997,0.00023798,2]
[315155893,1708894234634,-6530.7380997,0.00023798,2]
[315155894,1708894234644,-6530.7380997,0.00023798,2]
[315155895,1708894234653,-500.0,0.00023798,2]
[315155896,1708894234663,-500.0,0.00023798,2]
[315155897,1708894234673,-1223.74,0.00023798,2]
[315155898,1708894234682,-500.0,0.00023798,2]
[315155899,1708894234691,-500.0,0.00023798,2]
[315155900,1708894234701,-500.0,0.00023798,2]
[315155901,1708894234710,-213.27544329,0.00023798,2]
[315155902,1708894234719,-500.0,0.00023798,2]
[315155903,1708894234729,-213.2754432,0.00023798,2]
[315155904,1708894234738,-213.2754432,0.00023798,2]
[315155905,1708894234747,-213.2754432,0.00023798,2]
[315155906,1708894234758,-213.2754432,0.00023798,2]
[315155907,1708894234768,-213.2754432,0.00023798,2]
[315155908,1708894234778,-500.0,0.00023798,2]
[315155909,1708894234787,-213.2754432,0.00023798,2]
[315155910,1708894234798,-5000.0,0.00023799,2]
[315155911,1708894234807,-500.0,0.00023799,2]
[315155912,1708894234816,-500.0,0.00023799,2]
[315155913,1708894234826,-500.0,0.00023799,2]
[315155914,1708894234835,-343.54019385,0.00023799,2]
[315155915,1708894234845,-500.0,0.00023799,2]
[315155916,1708894234855,-500.0,0.00023799,2]
[315155917,1708894234865,-261.59846929,0.00023799,2]
[315155918,1708894234875,-500.0,0.00023799,2]
[315155919,1708894234885,-503.3,0.00023799,2]
[315155920,1708894234895,-500.0,0.00023799,2]
[315155921,1708894234904,-500.0,0.00023799,2]
[315155922,1708894234919,-500.0,0.00023799,2]
[315155923,1708894234928,-500.0,0.00023799,2]
[315155924,1708894234938,-500.0,0.00023799,2]
[315155925,1708894234947,-500.0,0.00023799,2]
[315155926,1708894234957,-500.0,0.00023799,2]
[315155927,1708894234967,-500.0,0.00023799,2]
[315155928,1708894234977,-500.0,0.00023799,2]
[315155929,1708894234986,-500.0,0.00023799,2]
[315155930,1708894234996,-500.0,0.00023799,2]
[315155931,1708894235009,-500.0,0.00023799,2]
[315155932,1708894235018,-556.77971327,0.00023799,2]
[315155933,1708894235028,-500.0,0.00023799,2]
[315155934,1708894235038,-500.0,0.00023799,2]
[315155935,1708894235049,-500.0,0.00023799,2]
[315155936,1708894235059,-543.77,0.00023799,2]
[315155937,1708894235069,-500.0,0.00023799,2]
[315155938,1708894235079,-500.0,0.00023799,2]
[315155939,1708894235089,-500.0,0.00023799,2]
[315155940,1708894235099,-500.0,0.00023799,2]
[315155941,1708894235109,-500.0,0.00023799,2]
[315155942,1708894235120,-500.0,0.00023799,2]
[315155943,1708894235130,-200.0,0.00023808,2]
[315155944,1708894235140,-396.40384658,0.00023809,2]
[315155945,1708894235150,-500.0,0.00023809,2]
[315155946,1708894235161,-500.0,0.00023809,2]
[315155947,1708894235171,-524.23,0.00023809,2]
[315155948,1708894235181,-542.45,0.00023809,2]
[315155949,1708894235191,-511.03,0.00023809,2]
[315155950,1708894235201,-500.0,0.00023809,2]
[315155951,1708894235211,-500.0,0.00023809,2]
[315155952,1708894235221,-500.0,0.00023809,2]
[315155953,1708894235231,-831.5,0.00023809,2]
[315155954,1708894235241,-500.0,0.00023809,2]
[315155955,1708894235251,-500.0,0.00023809,2]
[315155956,1708894235261,-500.0,0.00023809,2]
[315155957,1708894235270,-463.94368804,0.00023813,2]
[315155958,1708894235279,-150.0,0.00023826,2]
[315155959,1708894235289,-463.94368804,0.0002383,2]
[315155960,1708894235299,-463.94368804,0.00023848,2]
[315155961,1708894235308,-463.94368804,0.00023865,2]
[315155962,1708894235317,-500.0,0.00023878,2]
[315155963,1708894235327,-500.0,0.00023878,2]
[315155964,1708894235336,-500.0,0.00023878,2]
[315155965,1708894235346,-465.24,0.00023878,2]
[315155966,1708894235355,-500.0,0.00023878,2]
[315155967,1708894235365,-500.0,0.00023878,2]
[315155968,1708894235374,-500.0,0.00023878,2]
[315155969,1708894235384,-500.0,0.00023878,2]
[315155970,1708894235394,-500.0,0.00023878,2]
[315155971,1708894235404,-500.0,0.00023878,2]
[315155972,1708894235414,-549.09,0.00023878,2]
[315155973,1708894235423,-500.0,0.00023878,2]
[315155974,1708894235433,-500.0,0.00023878,2]
[315155975,1708894235443,-500.0,0.00023878,2]
[315155976,1708894235453,-500.0,0.00023878,2]
[315155977,1708894235462,-500.0,0.00023878,2]
[315155978,1708894235472,-628.58,0.00023878,2]
[315155979,1708894235482,-500.0,0.00023878,2]
[315155980,1708894235494,-500.0,0.00023878,2]
[315155981,1708894235503,-500.0,0.00023878,2]
[315155982,1708894235513,-500.0,0.00023878,2]
[315155983,1708894235523,-500.0,0.00023878,2]
[315155984,1708894235532,-500.0,0.00023878,2]
[315155985,1708894235541,-500.0,0.00023878,2]
[315155986,1708894235554,-500.0,0.00023878,2]
[315155987,1708894235564,-545.88369973,0.00023878,2]
[315155988,1708894235573,-500.0,0.00023878,2]
[315155989,1708894235586,-500.0,0.00023878,2]
[315155990,1708894235595,-500.0,0.00023878,2]
[315155991,1708894235604,-500.0,0.00023878,2]
[315155992,1708894235614,-500.0,0.00023878,2]
[315155993,1708894235624,-500.0,0.00023878,2]
[315155994,1708894235634,-500.0,0.00023878,2]
[315155995,1708894235643,-500.0,0.00023878,2]
[315155996,1708894235652,-500.0,0.00023878,2]
[315155997,1708894235663,-500.0,0.00023878,2]
[315155998,1708894235673,-500.0,0.00023878,2]
[315155999,1708894235682,-1814.91,0.00023879,2]
[315156000,1708894235691,-500.0,0.00023879,2]
[315156001,1708894235701,-500.0,0.00023879,2]
[315156002,1708894235711,-419.88873898,0.00023879,2]
[315156003,1708894235720,-500.0,0.00023879,2]
[315156004,1708894235729,-500.0,0.00023879,2]
[315156005,1708894235738,-500.0,0.00023879,2]
[315156006,1708894235750,-500.0,0.00023879,2]
[315156007,1708894235761,-500.0,0.00023879,2]
[315156008,1708894235770,-500.0,0.00023879,2]
[315156009,1708894235780,-500.0,0.00023879,2]
[315156010,1708894235789,-500.0,0.00023879,2]
[315156011,1708894235799,-500.0,0.00023879,2]
[315156012,1708894235809,-500.0,0.00023879,2]
[315156013,1708894235818,-500.0,0.00023879,2]
[315156014,1708894235828,-500.0,0.00023879,2]
[315156015,1708894235837,-500.0,0.00023879,2]
[315156016,1708894235847,-500.0,0.00023879,2]
[315156017,1708894235857,-500.0,0.00023879,2]
[315156018,1708894235866,-500.0,0.00023879,2]
[315156019,1708894235876,-162.48,0.00023879,2]
[315156020,1708894235885,-500.0,0.00023879,2]
[315156021,1708894235895,-500.0,0.00023879,2]
[315156022,1708894235904,-500.0,0.00023879,2]
[315156023,1708894235915,-463.94368804,0.00023883,2]
[315156024,1708894235924,-537.17279755,0.00023888,2]
[315156025,1708894235934,-1362.8057351,0.00023897,2]
[315156026,1708894235943,-167.81005821,0.00023897,2]
[315156027,1708894235953,-1362.80573505,0.00023897,2]
[315156028,1708894235962,-1362.80573505,0.00023898,2]
[315156029,1708894235972,-1362.80573505,0.00023898,2]
[315156030,1708894235981,-3701.27285981,0.00023898,2]
[315156031,1708894235992,-1362.80573505,0.00023898,2]
[315156032,1708894236001,-1362.80573505,0.00023898,2]
[315156033,1708894236011,-193.86263835,0.00023898,2]
[315156034,1708894236021,-193.86263835,0.00023898,2]
[315156035,1708894236031,-193.86263835,0.00023898,2]
[315156036,1708894236041,-193.86263835,0.00023898,2]
[315156037,1708894236051,-1362.80573505,0.00023899,2]
[315156038,1708894236061,-1362.80573505,0.00023899,2]
[315156039,1708894236070,-601.62044776,0.00023899,2]
[315156040,1708894236080,-587.83896727,0.00023899,2]
[315156041,1708894236090,-500.0,0.00023899,2]
[315156042,1708894236100,-490.68718469,0.00023899,2]
[315156043,1708894236110,-500.0,0.00023899,2]
[315156044,1708894236119,-1073.68,0.00023899,2]
[315156045,1708894236129,-500.0,0.00023899,2]
[315156046,1708894236138,-500.0,0.00023899,2]
[315156047,1708894236148,-500.0,0.00023899,2]
[315156048,1708894236158,-500.0,0.00023899,2]
[315156049,1708894236167,-500.0,0.00023899,2]
[315156050,1708894236177,-500.0,0.00023899,2]
[315156051,1708894236186,-500.0,0.00023899,2]
[315156052,1708894236196,-500.0,0.00023899,2]
[315156053,1708894236205,-500.0,0.00023899,2]
[315156054,1708894236214,-500.0,0.00023899,2]
[315156055,1708894236224,-500.0,0.00023899,2]
[315156056,1708894236233,-269.77014374,0.00023899,2]
[315156057,1708894236243,-500.0,0.00023899,2]
[315156058,1708894236252,-1362.80573505,0.00023899,2]
[315156059,1708894236262,-1362.80573505,0.00023899,2]
[315156060,1708894236272,-1362.80573505,0.000239,2]
[315156061,1708894236282,-45846.5574,0.000239,2]
[315156062,1708894236292,-58881.59811,0.000239,2]
[315156063,1708894236301,-6530.7380997,0.000239,2]
[315156064,1708894236311,-463.94368804,0.000239,2]
[315156065,1708894236320,-506.89040472,0.000239,2]
[315156066,1708894236330,-1362.80573505,0.000239,2]
[315156067,1708894236339,-150.0,0.00023906,2]
[315156068,1708894236349,-150.0,0.00023915,2]
[315156069,1708894236359,-150.0,0.00023975,2]
[315156070,1708894236369,-190.6451707,0.00023978,2]
[315156071,1708894236378,-500.0,0.00023986,2]
[315156072,1708894236388,-500.0,0.00023986,2]
[315156073,1708894236398,-500.0,0.00023986,2]
[315156074,1708894236408,-500.0,0.00023987,2]
[315156075,1708894236417,-500.0,0.00023987,2]
[315156076,1708894236426,-1073.68,0.00023987,2]
[315156077,1708894236440,-500.0,0.00023987,2]
[315156078,1708894236452,-500.0,0.00023987,2]
[315156079,1708894236464,-1073.68,0.00023987,2]
[315156080,1708894236476,-500.0,0.00023987,2]
[315156081,1708894236488,-500.0,0.00023987,2]
[315156082,1708894236500,-500.0,0.00023987,2]
[315156083,1708894236512,-500.0,0.00023987,2]
[315156084,1708894236524,-500.0,0.00023987,2]
[315156085,1708894236534,-500.0,0.00023987,2]
[315156086,1708894236545,-500.0,0.00023987,2]
[315156087,1708894236556,-500.0,0.00023987,2]
[315156088,1708894236569,-500.0,0.00023987,2]
[315156089,1708894236583,-500.0,0.00023987,2]
[315156090,1708894236625,-500.0,0.00023987,2]
[315156091,1708894236637,-500.0,0.00023987,2]
[315156092,1708894236650,-500.0,0.00023987,2]
[315156093,1708894236663,-500.0,0.00023987,2]
[315156094,1708894236678,-500.0,0.00023987,2]
[315156095,1708894236690,-500.0,0.00023987,2]
[315156096,1708894236701,-500.0,0.00023987,2]
[315156097,1708894236714,-500.0,0.00023987,2]
[315156098,1708894236726,-500.0,0.00023987,2]
[315156099,1708894236737,-500.0,0.00023987,2]
[315156100,1708894236747,-500.0,0.00023987,2]
[315156101,1708894236757,-500.0,0.00023987,2]
[315156102,1708894236769,-500.0,0.00023987,2]
[315156103,1708894236781,-500.0,0.00023987,2]
[315156104,1708894236792,-500.0,0.00023987,2]
[315156105,1708894236803,-500.0,0.00023987,2]
[315156106,1708894236816,-500.0,0.00023987,2]
[315156107,1708894236827,-500.0,0.00023987,2]
[315156108,1708894236837,-500.0,0.00023987,2]
[315156109,1708894236848,-500.0,0.00023987,2]
[315156110,1708894236859,-500.0,0.00023987,2]
[315156111,1708894236871,-500.0,0.00023987,2]
[315156112,1708894236882,-500.0,0.00023987,2]
[315156113,1708894236893,-500.0,0.00023987,2]
[315156114,1708894236902,-500.0,0.00023987,2]
[315156115,1708894236914,-500.0,0.00023987,2]
[315156116,1708894236924,-500.0,0.00023987,2]
[315156117,1708894236935,-254.66924314,0.00023987,2]
[315156118,1708894236948,-524.23,0.00023987,2]
[315156119,1708894236959,-524.23,0.00023987,2]
[315156120,1708894236970,-500.0,0.00023987,2]
[315156121,1708894236982,-500.0,0.00023987,2]
[315156122,1708894236995,-500.0,0.00023987,2]
[315156123,1708894237006,-500.0,0.00023987,2]
[315156124,1708894237018,-500.0,0.00023987,2]
[315156125,1708894237029,-500.0,0.00023987,2]
[315156126,1708894237039,-500.0,0.00023987,2]
[315156127,1708894237049,-500.0,0.00023987,2]
[315156128,1708894237061,-500.0,0.00023987,2]
[315156129,1708894237072,-500.0,0.00023987,2]
[315156130,1708894237083,-500.0,0.00023987,2]
[315156131,1708894237094,-500.0,0.00023987,2]
[315156132,1708894237105,-500.0,0.00023987,2]
[315156133,1708894237116,-500.0,0.00023987,2]
[315156134,1708894237127,-500.0,0.00023987,2]
[315156135,1708894237139,-500.0,0.00023987,2]
[315156136,1708894237150,-500.0,0.00023987,2]
[315156137,1708894237162,-500.0,0.00023987,2]
[315156138,1708894237180,-511.03,0.00023987,2]
[315156139,1708894237197,-511.03,0.00023987,2]
[315156140,1708894237212,-500.0,0.00023987,2]
[315156141,1708894237224,-500.0,0.00023987,2]
[315156142,1708894237234,-1223.74,0.00023987,2]
[315156143,1708894237244,-1223.74,0.00023987,2]
[315156144,1708894237254,-1223.74,0.00023987,2]
[315156145,1708894237264,-500.0,0.00023987,2]
[315156146,1708894237274,-500.0,0.00023987,2]
[315156147,1708894237285,-500.0,0.00023987,2]
[315156148,1708894237299,-500.0,0.00023987,2]
[315156150,1708894237311,-500.0,0.00023987,2]
[315156152,1708894237323,-500.0,0.00023987,2]
[315156155,1708894237334,-500.0,0.00023987,2]
[315156156,1708894237345,-500.0,0.00023987,2]
[315156157,1708894237361,-500.0,0.00023987,2]
[315156158,1708894237372,-446.78772129,0.00023987,2]
[315156159,1708894237385,-500.0,0.00023987,2]
[315156160,1708894237396,-500.0,0.00023987,2]
[315156161,1708894237405,-500.0,0.00023987,2]
[315156162,1708894237417,-500.0,0.00023987,2]
[315156163,1708894237427,-500.0,0.00023987,2]
[315156164,1708894237437,-500.0,0.00023987,2]
[315156165,1708894237447,-500.0,0.00023987,2]
[315156166,1708894237458,-500.0,0.00023987,2]
[315156167,1708894237468,-500.0,0.00023987,2]
[315156168,1708894237479,-500.0,0.00023987,2]
[315156169,1708894237490,-500.0,0.00023987,2]
[315156170,1708894237501,-500.0,0.00023987,2]
[315156171,1708894237512,-500.0,0.00023987,2]
[315156172,1708894237522,-500.0,0.00023987,2]
[315156173,1708894237533,-500.0,0.00023987,2]
[315156174,1708894237543,-500.0,0.00023987,2]
[315156175,1708894237554,-500.0,0.00023987,2]
[315156176,1708894237564,-500.0,0.00023987,2]
[315156177,1708894237575,-500.0,0.00023987,2]
[315156178,1708894237592,-500.0,0.00023987,2]
[315156179,1708894237603,-500.0,0.00023987,2]
[315156180,1708894237613,-500.0,0.00023987,2]
[315156181,1708894237625,-500.0,0.00023987,2]
[315156182,1708894237637,-500.0,0.00023987,2]
[315156183,1708894237653,-500.0,0.00023987,2]
[315156184,1708894237665,-500.0,0.00023987,2]
[315156185,1708894237676,-500.0,0.00023987,2]
[315156186,1708894237686,-500.0,0.00023987,2]
[315156187,1708894237697,-500.0,0.00023987,2]
[315156188,1708894237708,-324.71,0.00023987,2]
[315156189,1708894237719,-831.5,0.00023987,2]
[315156190,1708894237730,-831.5,0.00023987,2]
[315156191,1708894237741,-500.0,0.00023987,2]
[315156192,1708894237751,-500.0,0.00023987,2]
[315156193,1708894237761,-500.0,0.00023987,2]
[315156194,1708894237772,-500.0,0.00023987,2]
[315156195,1708894237783,-500.0,0.00023987,2]
[315156196,1708894237794,-500.0,0.00023987,2]
[315156197,1708894237805,-500.0,0.00023987,2]
[315156198,1708894237817,-500.0,0.00023987,2]
[315156199,1708894237828,-500.0,0.00023987,2]
[315156200,1708894237839,-500.0,0.00023987,2]
[315156201,1708894237850,-276485.1783138,0.00023988,2]
[315156202,1708894237861,-15261.1722312,0.00023988,2]
[315156203,1708894237871,-500.0,0.00023988,2]
[315156204,1708894237882,-500.0,0.00023988,2]
[315156205,1708894237892,-1223.74,0.00023988,2]
[315156207,1708894237903,-1223.74,0.00023988,2]
[315156209,1708894237916,-500.0,0.00023988,2]
[315156211,1708894237927,-500.0,0.00023988,2]
[315156213,1708894237938,-500.0,0.00023988,2]
[315156214,1708894237950,-500.0,0.00023988,2]
[315156216,1708894237961,-500.0,0.00023989,2]
[315156218,1708894237972,-500.0,0.00023989,2]
[315156220,1708894237983,-500.0,0.00023989,2]
[315156222,1708894237993,-500.0,0.00023989,2]
[315156224,1708894238004,-524.23,0.00023989,2]
[315156226,1708894238014,-524.23,0.00023989,2]
[315156228,1708894238026,-524.23,0.00023989,2]
[315156230,1708894238037,-511.03,0.00023989,2]
[315156232,1708894238047,-511.03,0.00023989,2]
[315156234,1708894238058,-511.03,0.00023989,2]
[315156236,1708894238069,-1223.74,0.00023989,2]
[315156238,1708894238079,-500.0,0.00023989,2]
[315156240,1708894238090,-500.0,0.00023989,2]
[315156242,1708894238100,-500.0,0.00023989,2]
[315156244,1708894238110,-500.0,0.00023989,2]
[315156246,1708894238121,-500.0,0.00023989,2]
[315156248,1708894238131,-831.5,0.00023989,2]
[315156250,1708894238142,-831.5,0.00023989,2]
[315156252,1708894238152,-831.5,0.00023989,2]
[315156254,1708894238164,-500.0,0.00023989,2]
[315156256,1708894238175,-500.0,0.00023989,2]
[315156258,1708894238185,-500.0,0.00023989,2]
[315156260,1708894238195,-500.0,0.00023989,2]
[315156262,1708894238205,-500.0,0.00023989,2]
[315156264,1708894238216,-164.1073353,0.00023989,2]
[315156266,1708894238227,-500.0,0.00023989,2]
[315156268,1708894238237,-253.53543437,0.00023989,2]
[315156270,1708894238249,-2694.0,0.0002399,2]
[315156272,1708894238259,-1372.0,0.0002399,2]
[315156274,1708894238269,-203.663,0.0002399,2]
[315156276,1708894238279,-955.0,0.0002399,2]
[315156278,1708894238289,-600.0,0.0002399,2]
[315156280,1708894238299,-1953.0,0.0002399,2]
[315156282,1708894238309,-216.0,0.0002399,2]
[315156284,1708894238319,-1231.0,0.0002399,2]
[315156286,1708894238329,-1257.0,0.0002399,2]
[315156288,1708894238340,-276.0,0.0002399,2]
[315156290,1708894238350,-430.0,0.0002399,2]
[315156292,1708894238364,-1007.0,0.0002399,2]
[315156294,1708894238375,-859.0,0.0002399,2]
[315156296,1708894238386,-322.0,0.0002399,2]
[315156298,1708894238397,-2890.0,0.0002399,2]
[315156301,1708894238409,-338.0,0.0002399,2]
[315156303,1708894238420,-544.25403949,0.0002399,2]
[315156328,1708894238689,-578.10578071,0.0002399,2]
[315156330,1708894238703,-15.6401798,0.0002399,2]
[315156332,1708894238712,-1453.0,0.0002399,2]
[315156334,1708894238723,-2446.085,0.0002399,2]
[315156336,1708894238733,-162.0,0.0002399,2]
[315156338,1708894238744,-298.0,0.0002399,2]
[315156340,1708894238754,-390.0,0.0002399,2]
[315156342,1708894238765,-10894.48101191,0.0002399,2]
[315156344,1708894238778,-9003.51898809,0.0002399,2]
[315156346,1708894238788,-2296.0,0.0002399,2]
[315156348,1708894238798,-5636.0,0.0002399,2]
[315156350,1708894238808,-5385.66598918,0.0002399,2]
[315156426,1708894239684,-206.0,0.00022881,2]
[315156428,1708894239693,-213.2754432,0.00023798,2]
[315156430,1708894239702,-166.61267006,0.000238,2]
[315156432,1708894239713,-213.2754432,0.00023809,2]
[315156434,1708894239722,-166.61267003,0.00023833,2]
[315156436,1708894239732,-2051.33401082,0.0002399,2]
[315156438,1708894239741,-2013.39131669,0.0002399,2]
[315156442,1708894239761,-921.60868331,0.0002399,2]
[315156444,1708894239771,-707.44976754,0.0002399,2]
[315156447,1708894239790,-6199.90000025,0.0002399,2]
[315156449,1708894239801,-1277.65023221,0.0002399,2]
[315156451,1708894239810,-4108.0,0.0002399,2]
[315156453,1708894239820,-11673.62082072,0.0002399,2]
[315156456,1708894239838,-3531.60000001,0.0002399,2]
[315156458,1708894239854,-220.05427419,0.000239,4]
[315156461,1708894239863,-2283.79592934,0.0002399,2]
[315156503,1708894240263,-166.61267003,0.00023867,2]
[315156505,1708894240272,-166.61267003,0.000239,2]
[315156507,1708894240282,-145.28893943,0.0002399,2]
[315156509,1708894240293,-619.3,0.0002399,2]
[315156737,1708894242554,-213.2754432,0.000239,2]
[315156739,1708894242563,-24381.3943105,0.0002399,2]
[315156741,1708894242572,-150.0,0.0002399,2]
[315156743,1708894242584,-1040.0,0.0002399,2]
[315156745,1708894242594,-250.0,0.0002399,2]
[315156747,1708894242603,-500.0,0.00023992,2]